[Event "ESTCC 65 2019"]
[Site "Mali Losinj"]
[Date "2019.09.21"]
[Round "4.21"]
[White "James, Kevin"]
[Black "Kolbak, Jens"]
[Result "1/2-1/2"]
[ECO "D36"]
[WhiteElo "1959"]
[BlackElo "2173"]
[Annotator "NA"]
[PlyCount "61"]
[EventDate "2019.09.18"]
[EventType "team-tourn"]
[EventCountry "CRO"]
[SourceTitle "playchess.com"]
[Source "ChessBase"]
[SourceQuality "1"]
[WhiteTeam "Ireland"]
[BlackTeam "Denmark"]
[WhiteTeamCountry "IRL"]
[BlackTeamCountry "DEN"]
[TimeControl "40/5400+30:1800+30"]

1. d4 {[%emt 0:00:30]} Nf6 {[%emt 0:00:30]} 2. c4 {[%emt 0:00:00]} e6 {[%emt 0:00:00]} 3. Nc3 {[%emt 0:00:00]} d5 {[%emt 0:00:00]} 4. cxd5 {[%emt 0:00:30]} exd5 {[%emt 0:00:30]} 5. Bg5 {[%emt 0:00:00]} Be7 {[%emt 0:00:00]} 6. e3 {[%emt 0:00:00]} c6 {[%emt 0:00:00]} 7. Bd3 {[%emt 0:00:30]} Nbd7 {[%emt 0:00:30]} 8. Qc2 {[%emt 0:01:30]} Nh5 {[%emt 0:01:30]} 9. Bxe7 {[%emt 0:00:30]} Qxe7 {[%emt 0:00:00]} 10. Nge2 {[%emt 0:00:30]} g6 {[%emt 0:04:00]} 11. O-O {[%emt 0:02:30]} Ndf6 {[%emt 0:03:30]} 12. Kh1 {[%emt 0:05:30]} O-O {[%emt 0:01:30]} 13. Rae1 {[%emt 0:00:30]} Bd7 {[%emt 0:06:30]} 14. Nd1 {[%emt 0:10:30]} Ng4 {[%emt 0:17:30]} 15. g3 {[%emt 0:05:30]} Rae8 {[%emt 0:01:30]} 16. Qd2 {[%emt 0:08:30]} Nhf6 {[%emt 0:14:30]} 17. Ng1 {[%emt 0:11:30]} Ne4 {[%emt 0:04:30]} 18. Qc2 {[%emt 0:00:30]} Nd6 {[%emt 0:02:30]} 19. Nf3 {[%emt 0:08:30]} Bf5 {[%emt 0:06:30]} 20. Nd2 {[%emt 0:03:30]} Bxd3 {[%emt 0:00:30]} 21. Qxd3 {[%emt 0:00:30]} h5 {[%emt 0:01:30]} 22. f3 {[%emt 0:01:30]} Nh6 {[%emt 0:10:30]} 23. Nf2 {[%emt 0:06:30]} h4 {[%emt 0:02:30]} 24. g4 {[%emt 0:00:30]} Kg7 {[%emt 0:02:51]} 25. Rg1 {[%emt 0:04:30]} f6 {[%emt 0:02:50]} 26. a4 {[%emt 0:01:30]} Nhf7 {[%emt 0:00:52]} 27. Nh3 {[%emt 0:01:30]} g5 {[%emt 0:02:21]} 28. Nf2 {[%emt 0:00:00]} Qc7 {[%emt 0:02:06]} 29. b4 {[%emt 0:02:00]} Re7 {[%emt 0:00:08]} 30. Rb1 {[%emt 0:00:30]} Rfe8 {[%emt 0:00:15]} 31. Rge1 {[%emt 0:01:30]} 1/2-1/2

[Event "ESTCC 65 2019"]
[Site "Mali Losinj"]
[Date "2019.09.21"]
[Round "4.22"]
[White "Jorgensen, Arne Bjorn"]
[Black "Lohan, Martin"]
[Result "1/2-1/2"]
[ECO "E92"]
[WhiteElo "1996"]
[BlackElo "1796"]
[Annotator "NA"]
[PlyCount "44"]
[EventDate "2019.09.18"]
[EventType "team-tourn"]
[EventCountry "CRO"]
[SourceTitle "playchess.com"]
[Source "ChessBase"]
[SourceQuality "1"]
[WhiteTeam "Denmark"]
[BlackTeam "Ireland"]
[WhiteTeamCountry "DEN"]
[BlackTeamCountry "IRL"]
[TimeControl "40/5400+30:1800+30"]

1. d4 {[%emt 0:00:30]} Nf6 {[%emt 0:00:30]} 2. c4 {[%emt 0:00:00]} g6 {[%emt 0:00:00]} 3. Nc3 {[%emt 0:00:00]} Bg7 {[%emt 0:00:00]} 4. e4 {[%emt 0:00:00]} d6 {[%emt 0:00:30]} 5. Nf3 {[%emt 0:00:00]} O-O {[%emt 0:00:30]} 6. Be2 {[%emt 0:00:30]} e5 {[%emt 0:00:00]} 7. dxe5 {[%emt 0:00:00]} dxe5 {[%emt 0:00:00]} 8. Qxd8 {[%emt 0:00:00]} Rxd8 {[%emt 0:00:30]} 9. Bg5 {[%emt 0:00:30]} Re8 {[%emt 0:14:30]} 10. h3 {[%emt 0:02:30]} c6 {[%emt 0:06:30]} 11. O-O {[%emt 0:01:30]} Na6 {[%emt 0:00:30]} 12. Rad1 {[%emt 0:05:30]} Nc5 {[%emt 0:03:30]} 13. Nd2 {[%emt 0:03:30]} a5 {[%emt 0:04:30]} 14. Be3 {[%emt 0:06:30]} Bf8 {[%emt 0:05:30]} 15. f3 {[%emt 0:05:30]} Be6 {[%emt 0:07:30]} 16. Nb3 {[%emt 0:09:30]} Nxb3 {[%emt 0:00:30]} 17. axb3 {[%emt 0:00:30]} Nd7 {[%emt 0:00:30]} 18. Na4 {[%emt 0:02:30]} Rab8 {[%emt 0:06:30]} 19. Ba7 {[%emt 0:09:30]} Ra8 {[%emt 0:00:30]} 20. Be3 {[%emt 0:00:30]} Rab8 {[%emt 0:00:00]} 21. Ba7 {[%emt 0:00:30]} Ra8 {[%emt 0:00:00]} 22. Be3 {[%emt 0:00:00]} Rab8 {[%emt 0:00:30]} 1/2-1/2

[Event "ESTCC 65 2019"]
[Site "Mali Losinj"]
[Date "2019.09.21"]
[Round "4.23"]
[White "Cassidy, Sydney"]
[Black "Mortensen, Steen Juul"]
[Result "1/2-1/2"]
[ECO "C55"]
[WhiteElo "1599"]
[BlackElo "1892"]
[Annotator "NA"]
[PlyCount "60"]
[EventDate "2019.09.18"]
[EventType "team-tourn"]
[EventCountry "CRO"]
[SourceTitle "playchess.com"]
[Source "ChessBase"]
[SourceQuality "1"]
[WhiteTeam "Ireland"]
[BlackTeam "Denmark"]
[WhiteTeamCountry "IRL"]
[BlackTeamCountry "DEN"]
[TimeControl "40/5400+30:1800+30"]

1. e4 {[%emt 0:00:30]} e5 {[%emt 0:00:30]} 2. Nf3 {[%emt 0:00:00]} Nc6 {[%emt 0:00:00]} 3. Bb5 {[%emt 0:01:00]} a6 {[%emt 0:00:00]} 4. Ba4 {[%emt 0:00:00]} Nf6 {[%emt 0:00:00]} 5. O-O {[%emt 0:00:00]} Be7 {[%emt 0:00:00]} 6. d3 {[%emt 0:00:30]} b5 {[%emt 0:01:30]} 7. Bb3 {[%emt 0:00:30]} d6 {[%emt 0:01:30]} 8. c3 {[%emt 0:00:30]} O-O {[%emt 0:00:30]} 9. h3 {[%emt 0:00:30]} Na5 {[%emt 0:03:30]} 10. Bc2 {[%emt 0:00:30]} c5 {[%emt 0:00:00]} 11. b4 {[%emt 0:01:30]} Nc6 {[%emt 0:02:00]} 12. a3 {[%emt 0:01:30]} Qc7 {[%emt 0:06:30]} 13. Bb2 {[%emt 0:02:30]} d5 {[%emt 0:07:30]} 14. Nbd2 {[%emt 0:05:30]} dxe4 {[%emt 0:03:30]} 15. Nxe4 {[%emt 0:01:30]} Nxe4 {[%emt 0:01:30]} 16. dxe4 {[%emt 0:00:30]} Be6 {[%emt 0:02:30]} 17. Qe2 {[%emt 0:03:30]} Rfc8 {[%emt 0:06:30]} 18. Rac1 {[%emt 0:01:30]} Qb6 {[%emt 0:03:30]} 19. Qe3 {[%emt 0:04:30]} Qb8 {[%emt 0:06:30]} 20. Rfd1 {[%emt 0:01:30]} f6 {[%emt 0:01:30]} 21. Bd3 {[%emt 0:05:30]} c4 {[%emt 0:14:30]} 22. Be2 {[%emt 0:01:30]} a5 {[%emt 0:02:30]} 23. Rc2 {[%emt 0:02:30]} Bd8 {[%emt 0:05:30]} 24. Nh2 {[%emt 0:05:30]} Bb6 {[%emt 0:03:30]} 25. Qg3 {[%emt 0:04:30]} axb4 {[%emt 0:00:30]} 26. axb4 {[%emt 0:02:30]} Rd8 {[%emt 0:04:30]} 27. Rcd2 {[%emt 0:01:30]} Rxd2 {[%emt 0:04:04]} 28. Rxd2 {[%emt 0:00:30]} Ra7 {[%emt 0:01:14]} 29. Bg4 {[%emt 0:00:30]} Bf7 {[%emt 0:02:01]} 30. Nf1 {[%emt 0:04:30]} Kf8 {[%emt 0:03:19]} 1/2-1/2

[Event "ESTCC 65 2019"]
[Site "Mali Losinj"]
[Date "2019.09.21"]
[Round "4.24"]
[White "Andersson, Finn"]
[Black "Durkan, Joe"]
[Result "1/2-1/2"]
[ECO "C45"]
[WhiteElo "1771"]
[BlackElo "1459"]
[Annotator "NA"]
[PlyCount "62"]
[EventDate "2019.09.18"]
[EventType "team-tourn"]
[EventCountry "CRO"]
[SourceTitle "playchess.com"]
[Source "ChessBase"]
[SourceQuality "1"]
[WhiteTeam "Denmark"]
[BlackTeam "Ireland"]
[WhiteTeamCountry "DEN"]
[BlackTeamCountry "IRL"]
[TimeControl "40/5400+30:1800+30"]

1. e4 {[%emt 0:00:30]} e5 {[%emt 0:00:30]} 2. Nf3 {[%emt 0:00:00]} Nc6 {[%emt 0:00:00]} 3. d4 {[%emt 0:00:00]} exd4 {[%emt 0:01:00]} 4. Nxd4 {[%emt 0:00:30]} Ne5 {[%emt 0:02:30]} 5. f4 {[%emt 0:04:30]} Ng6 {[%emt 0:00:30]} 6. Bc4 {[%emt 0:01:30]} c6 {[%emt 0:01:30]} 7. Qe2 {[%emt 0:05:30]} Bc5 {[%emt 0:01:30]} 8. Bxf7+ {[%emt 0:04:30]} Kxf7 {[%emt 0:08:30]} 9. Qc4+ {[%emt 0:00:30]} d5 {[%emt 0:00:30]} 10. Qxc5 {[%emt 0:00:00]} Nf6 {[%emt 0:02:30]} 11. e5 {[%emt 0:07:00]} Ne4 {[%emt 0:00:30]} 12. Qa3 {[%emt 0:00:30]} Qh4+ {[%emt 0:03:30]} 13. g3 {[%emt 0:00:30]} Qh3 {[%emt 0:01:30]} 14. Qf3 {[%emt 0:06:30]} Bg4 {[%emt 0:00:30]} 15. Qf1 {[%emt 0:00:00]} Qh5 {[%emt 0:03:30]} 16. Nd2 {[%emt 0:02:00]} Bh3 {[%emt 0:05:30]} 17. Qf3 {[%emt 0:09:30]} Bg4 {[%emt 0:01:30]} 18. Qe3 {[%emt 0:01:30]} c5 {[%emt 0:05:30]} 19. Nxe4 {[%emt 0:03:30]} cxd4 {[%emt 0:00:30]} 20. Nd6+ {[%emt 0:00:30]} Ke6 {[%emt 0:00:30]} 21. Qxd4 {[%emt 0:00:30]} Rhf8 {[%emt 0:06:30]} 22. Nxb7 {[%emt 0:07:30]} Bf3 {[%emt 0:02:30]} 23. Nc5+ {[%emt 0:00:00]} Ke7 {[%emt 0:00:30]} 24. O-O {[%emt 0:03:00]} Nh4 {[%emt 0:00:30]} 25. Qf2 {[%emt 0:09:30]} Qg4 {[%emt 0:04:30]} 26. Re1 {[%emt 0:06:30]} Bd1 {[%emt 0:01:30]} 27. Re3 {[%emt 0:07:56]} Nf3+ {[%emt 0:14:30]} 28. Rxf3 {[%emt 0:04:04]} Bxf3 {[%emt 0:00:30]} 29. Nb3 {[%emt 0:00:35]} Rfc8 {[%emt 0:03:30]} 30. Be3 {[%emt 0:03:29]} Be4 {[%emt 0:00:30]} 31. Nd4 {[%emt 0:01:48]} Rc4 {[%emt 0:02:30]} 1/2-1/2

[Event "ESTCC 65 2019"]
[Site "Mali Losinj"]
[Date "2019.09.21"]
[Round "4.25"]
[White "Singer, Hans"]
[Black "Vadlja, Stjepan"]
[Result "1-0"]
[ECO "D55"]
[WhiteElo "2184"]
[BlackElo "1636"]
[Annotator "NA"]
[PlyCount "63"]
[EventDate "2019.09.18"]
[EventType "team-tourn"]
[EventCountry "CRO"]
[SourceTitle "playchess.com"]
[Source "ChessBase"]
[SourceQuality "1"]
[WhiteTeam "Austria"]
[BlackTeam "Croatia"]
[WhiteTeamCountry "AUT"]
[BlackTeamCountry "CRO"]
[TimeControl "40/5400+30:1800+30"]

1. d4 {[%emt 0:00:30]} d5 {[%emt 0:00:30]} 2. c4 {[%emt 0:00:00]} Nf6 {[%emt 0:00:00]} 3. Nc3 {[%emt 0:01:00]} e6 {[%emt 0:00:00]} 4. Bg5 {[%emt 0:00:30]} Be7 {[%emt 0:00:30]} 5. e3 {[%emt 0:00:00]} O-O {[%emt 0:02:30]} 6. Nf3 {[%emt 0:00:00]} c5 {[%emt 0:00:30]} 7. cxd5 {[%emt 0:03:30]} exd5 {[%emt 0:01:30]} 8. dxc5 {[%emt 0:01:30]} Be6 {[%emt 0:01:30]} 9. Be2 {[%emt 0:04:30]} Bxc5 {[%emt 0:00:30]} 10. O-O {[%emt 0:00:30]} Nbd7 {[%emt 0:00:30]} 11. Nd4 {[%emt 0:04:30]} Qe8 {[%emt 0:04:30]} 12. Bf3 {[%emt 0:06:30]} a6 {[%emt 0:03:30]} 13. Rc1 {[%emt 0:09:30]} Rc8 {[%emt 0:00:00]} 14. a3 {[%emt 0:03:30]} b5 {[%emt 0:01:00]} 15. g3 {[%emt 0:23:30]} Be7 {[%emt 0:00:30]} 16. Bg2 {[%emt 0:00:30]} h6 {[%emt 0:00:00]} 17. Bxf6 {[%emt 0:00:00]} Bxf6 {[%emt 0:00:00]} 18. Qh5 {[%emt 0:01:00]} Ne5 {[%emt 0:14:30]} 19. Nxe6 {[%emt 0:09:30]} fxe6 {[%emt 0:00:00]} 20. Qe2 {[%emt 0:03:30]} Qg6 {[%emt 0:01:00]} 21. Rfd1 {[%emt 0:01:30]} Nc4 {[%emt 0:00:00]} 22. a4 {[%emt 0:04:30]} b4 {[%emt 0:00:00]} 23. Nxd5 {[%emt 0:00:30]} Nxb2 {[%emt 0:01:30]} 24. Qxa6 {[%emt 0:08:48]} Rxc1 {[%emt 0:00:30]} 25. Qxe6+ {[%emt 0:00:29]} Kh8 {[%emt 0:00:00]} 26. Rxc1 {[%emt 0:00:13]} Nd3 {[%emt 0:00:00]} 27. Be4 {[%emt 0:01:28]} Qe8 {[%emt 0:03:30]} 28. Qxe8 {[%emt 0:00:20]} Rxe8 {[%emt 0:00:30]} 29. Bxd3 {[%emt 0:00:41]} Rb8 {[%emt 0:00:30]} 30. Nxf6 {[%emt 0:00:12]} gxf6 {[%emt 0:00:00]} 31. Rb1 {[%emt 0:00:59]} Kg7 {[%emt 0:00:00]} 32. Bb5 {[%emt 0:00:10]} 1-0

[Event "ESTCC 65 2019"]
[Site "Mali Losinj"]
[Date "2019.09.21"]
[Round "4.27"]
[White "Titz, Heimo"]
[Black "Novak, Stjepan"]
[Result "1-0"]
[ECO "A34"]
[WhiteElo "1971"]
[BlackElo "1503"]
[Annotator "NA"]
[PlyCount "123"]
[EventDate "2019.09.18"]
[EventType "team-tourn"]
[EventCountry "CRO"]
[SourceTitle "playchess.com"]
[Source "ChessBase"]
[SourceQuality "1"]
[WhiteTeam "Austria"]
[BlackTeam "Croatia"]
[WhiteTeamCountry "AUT"]
[BlackTeamCountry "CRO"]
[TimeControl "40/5400+30:1800+30"]

1. c4 {[%emt 0:00:30]} c5 {[%emt 0:00:30]} 2. Nf3 {[%emt 0:00:30]} Nf6 {[%emt 0:00:30]} 3. Nc3 {[%emt 0:00:30]} d6 {[%emt 0:00:30]} 4. g3 {[%emt 0:00:30]} b6 {[%emt 0:00:30]} 5. Bg2 {[%emt 0:00:30]} Bb7 {[%emt 0:00:00]} 6. O-O {[%emt 0:00:30]} Nbd7 {[%emt 0:00:00]} 7. b3 {[%emt 0:04:30]} g6 {[%emt 0:00:30]} 8. Bb2 {[%emt 0:01:30]} Bg7 {[%emt 0:00:30]} 9. d4 {[%emt 0:03:30]} O-O {[%emt 0:00:30]} 10. Qd2 {[%emt 0:07:30]} a6 {[%emt 0:03:30]} 11. Rfd1 {[%emt 0:01:30]} Qc7 {[%emt 0:03:30]} 12. Rac1 {[%emt 0:01:30]} cxd4 {[%emt 0:03:30]} 13. Qxd4 {[%emt 0:14:30]} Qc5 {[%emt 0:03:30]} 14. Nd5 {[%emt 0:09:30]} Bxd5 {[%emt 0:01:30]} 15. cxd5 {[%emt 0:00:00]} Qxd4 {[%emt 0:00:30]} 16. Nxd4 {[%emt 0:03:00]} Rac8 {[%emt 0:06:30]} 17. Nc6 {[%emt 0:00:30]} Rce8 {[%emt 0:00:30]} 18. b4 {[%emt 0:01:30]} Kh8 {[%emt 0:00:30]} 19. Rc2 {[%emt 0:02:30]} Ng8 {[%emt 0:01:30]} 20. Bxg7+ {[%emt 0:00:30]} Kxg7 {[%emt 0:00:00]} 21. Rdc1 {[%emt 0:09:30]} Ra8 {[%emt 0:13:00]} 22. f4 {[%emt 0:01:30]} a5 {[%emt 0:00:30]} 23. a3 {[%emt 0:00:30]} Rfc8 {[%emt 0:01:30]} 24. Kf2 {[%emt 0:00:30]} Kf8 {[%emt 0:00:30]} 25. h3 {[%emt 0:02:30]} Rc7 {[%emt 0:05:30]} 26. Nd4 {[%emt 0:01:30]} Rxc2 {[%emt 0:01:30]} 27. Rxc2 {[%emt 0:00:30]} axb4 {[%emt 0:01:30]} 28. axb4 {[%emt 0:00:00]} Ngf6 {[%emt 0:03:30]} 29. g4 {[%emt 0:02:00]} h6 {[%emt 0:02:30]} 30. Bf3 {[%emt 0:00:30]} Ne8 {[%emt 0:01:30]} 31. h4 {[%emt 0:00:30]} b5 {[%emt 0:02:30]} 32. g5 {[%emt 0:02:30]} hxg5 {[%emt 0:00:30]} 33. hxg5 {[%emt 0:00:30]} Ra7 {[%emt 0:03:30]} 34. Rc8 {[%emt 0:01:30]} Rb7 {[%emt 0:00:30]} 35. Ra8 {[%emt 0:01:30]} Nb8 {[%emt 0:03:30]} 36. Ra5 {[%emt 0:03:30]} Nc7 {[%emt 0:00:30]} 37. Ra2 {[%emt 0:02:30]} Nca6 {[%emt 0:00:30]} 38. Nc6 {[%emt 0:07:02]} Nc7 {[%emt 0:00:30]} 39. Na5 {[%emt 0:03:51]} Rb6 {[%emt 0:01:30]} 40. Rc2 {[%emt 0:00:44]} Nba6 {[%emt 0:01:30]} 41. Nc6 {[%emt 0:30:59]} Ke8 {[%emt 0:30:30]} 42. e4 {[%emt 0:00:28]} e6 {[%emt 0:02:30]} 43. Rb2 {[%emt 0:01:10]} Nb8 {[%emt 0:01:30]} 44. Nd4 {[%emt 0:01:36]} e5 {[%emt 0:00:30]} 45. fxe5 {[%emt 0:00:32]} dxe5 {[%emt 0:00:30]} 46. Nb3 {[%emt 0:01:22]} f6 {[%emt 0:02:30]} 47. gxf6 {[%emt 0:00:34]} Rxf6 {[%emt 0:00:00]} 48. Ke3 {[%emt 0:00:16]} Ke7 {[%emt 0:01:00]} 49. Be2 {[%emt 0:02:00]} Rf4 {[%emt 0:00:30]} 50. Nc5 {[%emt 0:00:29]} Rh4 {[%emt 0:00:30]} 51. Nb7 {[%emt 0:01:17]} Nxd5+ {[%emt 0:01:30]} 52. exd5 {[%emt 0:00:23]} Na6 {[%emt 0:00:30]} 53. d6+ {[%emt 0:01:09]} Ke6 {[%emt 0:00:30]} 54. Nc5+ {[%emt 0:00:41]} Nxc5 {[%emt 0:00:30]} 55. bxc5 {[%emt 0:00:02]} b4 {[%emt 0:03:30]} 56. Rd2 {[%emt 0:00:49]} Kd7 {[%emt 0:02:30]} 57. Bb5+ {[%emt 0:00:29]} Kd8 {[%emt 0:00:30]} 58. c6 {[%emt 0:00:33]} Rh3+ {[%emt 0:00:30]} 59. Ke4 {[%emt 0:00:25]} Rh4+ {[%emt 0:00:30]} 60. Kd5 {[%emt 0:00:59]} g5 {[%emt 0:02:30]} 61. c7+ {[%emt 0:00:21]} Kc8 {[%emt 0:00:00]} 62. Kc6 {[%emt 0:00:53]} 1-0

[Event "ESTCC 65 2019"]
[Site "Mali Losinj"]
[Date "2019.09.21"]
[Round "4.28"]
[White "Petanjek, Zvonko"]
[Black "Strobel, Ferdinand"]
[Result "0-1"]
[ECO "B07"]
[WhiteElo "1650"]
[BlackElo "1956"]
[Annotator "NA"]
[PlyCount "56"]
[EventDate "2019.09.18"]
[EventType "team-tourn"]
[EventCountry "CRO"]
[SourceTitle "playchess.com"]
[Source "ChessBase"]
[SourceQuality "1"]
[WhiteTeam "Croatia"]
[BlackTeam "Austria"]
[WhiteTeamCountry "CRO"]
[BlackTeamCountry "AUT"]
[TimeControl "40/5400+30:1800+30"]

1. e4 {[%emt 0:00:30]} d6 {[%emt 0:00:30]} 2. Nc3 {[%emt 0:00:00]} g6 {[%emt 0:00:30]} 3. h3 {[%emt 0:00:00]} Bg7 {[%emt 0:00:30]} 4. Nf3 {[%emt 0:00:30]} Nf6 {[%emt 0:00:30]} 5. Bc4 {[%emt 0:00:30]} O-O {[%emt 0:00:30]} 6. O-O {[%emt 0:00:30]} Nxe4 {[%emt 0:01:30]} 7. Nxe4 {[%emt 0:00:30]} d5 {[%emt 0:00:00]} 8. Bxd5 {[%emt 0:00:30]} Qxd5 {[%emt 0:01:00]} 9. Nc3 {[%emt 0:00:00]} Qd8 {[%emt 0:02:30]} 10. Qe2 {[%emt 0:00:00]} Nc6 {[%emt 0:01:30]} 11. a3 {[%emt 0:00:30]} e5 {[%emt 0:01:30]} 12. d3 {[%emt 0:04:30]} h6 {[%emt 0:02:30]} 13. Rb1 {[%emt 0:00:30]} f5 {[%emt 0:05:30]} 14. Re1 {[%emt 0:00:30]} Be6 {[%emt 0:04:30]} 15. Bd2 {[%emt 0:02:30]} Re8 {[%emt 0:15:30]} 16. Qd1 {[%emt 0:00:30]} Qd7 {[%emt 0:03:30]} 17. b3 {[%emt 0:04:30]} Rad8 {[%emt 0:03:30]} 18. Re2 {[%emt 0:02:30]} Bf7 {[%emt 0:07:30]} 19. Qc1 {[%emt 0:00:30]} Kh7 {[%emt 0:01:30]} 20. Nd1 {[%emt 0:02:30]} Nd4 {[%emt 0:01:30]} 21. Nxd4 {[%emt 0:01:30]} exd4 {[%emt 0:00:30]} 22. Rxe8 {[%emt 0:00:00]} Rxe8 {[%emt 0:00:00]} 23. Nb2 {[%emt 0:03:00]} Qc6 {[%emt 0:03:00]} 24. a4 {[%emt 0:00:30]} Bd5 {[%emt 0:02:30]} 25. f3 {[%emt 0:02:30]} Re2 {[%emt 0:00:30]} 26. Qd1 {[%emt 0:01:30]} Bxf3 {[%emt 0:01:30]} 27. gxf3 {[%emt 0:00:30]} Qxf3 {[%emt 0:00:00]} 28. Qf1 {[%emt 0:00:30]} Qg3+ {[%emt 0:00:00]} 0-1

[Event "ESTCC 65 2019"]
[Site "Mali Losinj"]
[Date "2019.09.21"]
[Round "4.29"]
[White "Peltola, Leo"]
[Black "Carlsten, Peter"]
[Result "1/2-1/2"]
[ECO "B01"]
[WhiteElo "1966"]
[BlackElo "1986"]
[Annotator "NA"]
[PlyCount "62"]
[EventDate "2019.09.18"]
[EventType "team-tourn"]
[EventCountry "CRO"]
[SourceTitle "playchess.com"]
[Source "ChessBase"]
[SourceQuality "1"]
[WhiteTeam "Finland"]
[BlackTeam "Sweden"]
[WhiteTeamCountry "FIN"]
[BlackTeamCountry "SWE"]
[TimeControl "40/5400+30:1800+30"]

1. e4 {[%emt 0:00:30]} d5 {[%emt 0:00:30]} 2. exd5 {[%emt 0:00:00]} Qxd5 {[%emt 0:00:30]} 3. Nc3 {[%emt 0:00:00]} Qd6 {[%emt 0:00:00]} 4. d4 {[%emt 0:00:30]} Nf6 {[%emt 0:00:00]} 5. Nf3 {[%emt 0:04:30]} a6 {[%emt 0:00:00]} 6. Be2 {[%emt 0:02:30]} Nc6 {[%emt 0:03:00]} 7. h3 {[%emt 0:01:30]} Bf5 {[%emt 0:01:30]} 8. a3 {[%emt 0:01:30]} Rd8 {[%emt 0:05:30]} 9. Be3 {[%emt 0:00:30]} e5 {[%emt 0:07:30]} 10. dxe5 {[%emt 0:03:30]} Nxe5 {[%emt 0:00:30]} 11. Qxd6 {[%emt 0:02:30]} Bxd6 {[%emt 0:00:30]} 12. O-O-O {[%emt 0:00:30]} O-O {[%emt 0:00:30]} 13. Nd4 {[%emt 0:01:30]} Bd7 {[%emt 0:01:30]} 14. g4 {[%emt 0:04:30]} Ng6 {[%emt 0:33:30]} 15. g5 {[%emt 0:05:30]} Ne8 {[%emt 0:00:00]} 16. h4 {[%emt 0:04:30]} c5 {[%emt 0:11:00]} 17. Nf3 {[%emt 0:04:30]} Rc8 {[%emt 0:06:30]} 18. Nd5 {[%emt 0:05:30]} Bc6 {[%emt 0:01:30]} 19. Nb6 {[%emt 0:07:30]} Rc7 {[%emt 0:01:30]} 20. Nd5 {[%emt 0:06:30]} Bxd5 {[%emt 0:05:44]} 21. Rxd5 {[%emt 0:00:00]} Nf4 {[%emt 0:00:14]} 22. Bxf4 {[%emt 0:03:00]} Bxf4+ {[%emt 0:00:03]} 23. Kb1 {[%emt 0:00:30]} Nd6 {[%emt 0:00:47]} 24. Nh2 {[%emt 0:04:30]} Ne4 {[%emt 0:04:19]} 25. Ng4 {[%emt 0:00:30]} f5 {[%emt 0:00:36]} 26. gxf6 {[%emt 0:01:30]} Nxf6 {[%emt 0:00:04]} 27. Rf5 {[%emt 0:05:30]} Bd6 {[%emt 0:01:06]} 28. Bc4+ {[%emt 0:03:30]} Kh8 {[%emt 0:00:05]} 29. Nxf6 {[%emt 0:00:30]} Rxf6 {[%emt 0:00:13]} 30. Rxf6 {[%emt 0:00:30]} gxf6 {[%emt 0:00:05]} 31. Rg1 {[%emt 0:03:30]} Rg7 {[%emt 0:01:36]} 1/2-1/2

[Event "ESTCC 65 2019"]
[Site "Mali Losinj"]
[Date "2019.09.21"]
[Round "4.30"]
[White "Ahlstrom, Per"]
[Black "Karppinen, Martti"]
[Result "1/2-1/2"]
[ECO "B32"]
[WhiteElo "1838"]
[BlackElo "1925"]
[Annotator "NA"]
[PlyCount "67"]
[EventDate "2019.09.18"]
[EventType "team-tourn"]
[EventCountry "CRO"]
[SourceTitle "playchess.com"]
[Source "ChessBase"]
[SourceQuality "1"]
[WhiteTeam "Sweden"]
[BlackTeam "Finland"]
[WhiteTeamCountry "SWE"]
[BlackTeamCountry "FIN"]
[TimeControl "40/5400+30:1800+30"]

1. e4 {[%emt 0:00:30]} c5 {[%emt 0:00:30]} 2. Nf3 {[%emt 0:00:30]} Nc6 {[%emt 0:00:30]} 3. d4 {[%emt 0:00:00]} cxd4 {[%emt 0:00:30]} 4. Nxd4 {[%emt 0:01:00]} e5 {[%emt 0:03:30]} 5. Nb5 {[%emt 0:10:30]} Bb4+ {[%emt 0:09:30]} 6. c3 {[%emt 0:01:30]} Be7 {[%emt 0:03:30]} 7. N1a3 {[%emt 0:14:30]} Nf6 {[%emt 0:07:30]} 8. Nc4 {[%emt 0:10:30]} O-O {[%emt 0:13:30]} 9. Nbd6 {[%emt 0:05:30]} Nxe4 {[%emt 0:09:30]} 10. Nxe4 {[%emt 0:03:30]} d5 {[%emt 0:02:30]} 11. Ng3 {[%emt 0:10:30]} dxc4 {[%emt 0:01:30]} 12. Qxd8 {[%emt 0:00:30]} Rxd8 {[%emt 0:01:30]} 13. Bxc4 {[%emt 0:00:30]} Na5 {[%emt 0:04:30]} 14. Be2 {[%emt 0:01:30]} Be6 {[%emt 0:00:30]} 15. O-O {[%emt 0:06:30]} Rac8 {[%emt 0:06:30]} 16. f4 {[%emt 0:03:30]} exf4 {[%emt 0:08:30]} 17. Bxf4 {[%emt 0:00:00]} Nc4 {[%emt 0:04:30]} 18. Bxc4 {[%emt 0:08:00]} Rxc4 {[%emt 0:00:49]} 19. Rae1 {[%emt 0:03:07]} Rc6 {[%emt 0:05:18]} 20. Ra1 {[%emt 0:03:12]} Ra6 {[%emt 0:00:48]} 21. a3 {[%emt 0:02:13]} Bc4 {[%emt 0:02:26]} 22. Rfd1 {[%emt 0:00:28]} Rxd1+ {[%emt 0:03:16]} 23. Rxd1 {[%emt 0:00:04]} Be6 {[%emt 0:01:10]} 24. Ne4 {[%emt 0:01:06]} h6 {[%emt 0:00:55]} 25. Bd6 {[%emt 0:01:28]} Bxd6 {[%emt 0:02:25]} 26. Rxd6 {[%emt 0:00:24]} Ra5 {[%emt 0:00:52]} 27. Rd8+ {[%emt 0:03:41]} Kh7 {[%emt 0:00:03]} 28. Kf2 {[%emt 0:00:10]} Rf5+ {[%emt 0:00:34]} 29. Ke3 {[%emt 0:00:19]} Rf1 {[%emt 0:00:56]} 30. Rd2 {[%emt 0:00:31]} b6 {[%emt 0:03:06]} 31. Kd4 {[%emt 0:00:23]} Rf4 {[%emt 0:01:17]} 32. Ke3 {[%emt 0:01:28]} Rf5 {[%emt 0:00:28]} 33. Rf2 {[%emt 0:02:49]} Re5 {[%emt 0:00:15]} 34. Kd4 {[%emt 0:00:36]} 1/2-1/2